fUST/lending_fUST_20250727
["ID","MTS","AMOUNT","RATE_DAILY","PERIOD"]
[375272958,1753612239394,-460.0,0.00019178,2]
[375272959,1753612239404,-460.0,0.00019178,2]
[375272960,1753612239414,-460.0,0.00019178,2]
[375272961,1753612239424,-465.52722052,0.00019178,2]
[375272962,1753612239434,-460.0,0.00019178,2]
[375272963,1753612239443,-460.0,0.00019178,2]
[375272964,1753612239452,-460.0,0.00019178,2]
[375272965,1753612239462,-460.0,0.00019178,2]
[375272966,1753612239472,-460.0,0.00019178,2]
[375272967,1753612239482,-460.0,0.00019178,2]
[375272968,1753612239491,-460.0,0.00019178,2]
[375272969,1753612239502,-460.0,0.00019178,2]
[375272970,1753612239511,-535.45,0.00019178,2]
[375272971,1753612239522,-460.0,0.00019178,2]
[375272972,1753612239531,-463.32436505,0.00019178,2]
[375272973,1753612239540,-1887.82,0.00019178,2]
[375272975,1753612239550,-1827.36,0.00019178,2]
[375272976,1753612239560,-3527.67,0.00019178,2]
[375272977,1753612239569,-474.44327687,0.00019178,2]
[375272978,1753612239579,-460.0,0.00019178,2]
[375272979,1753612239588,-460.0,0.00019178,2]
[375272980,1753612239598,-460.0,0.00019178,2]
[375272981,1753612239608,-614.29,0.00019178,2]
[375272982,1753612239617,-460.0,0.00019178,2]
[375272983,1753612239626,-460.0,0.00019178,2]
[375272984,1753612239635,-460.0,0.00019178,2]
[375272985,1753612239645,-2214.31,0.00019178,2]
[375272986,1753612239654,-460.0,0.00019178,2]
[375272987,1753612239664,-460.0,0.00019178,2]
[375272988,1753612239673,-460.0,0.00019178,2]
[375272989,1753612239683,-599.1,0.00019178,2]
[375272990,1753612239692,-460.0,0.00019178,2]
[375272991,1753612239702,-460.0,0.00019178,2]
[375272993,1753612239711,-779.87,0.00019178,2]
[375272995,1753612239720,-1073.35,0.00019178,2]
[375272997,1753612239730,-520.92,0.00019178,2]
[375272998,1753612239739,-460.0,0.00019178,2]
[375272999,1753612239748,-460.0,0.00019178,2]
[375273000,1753612239758,-460.0,0.00019178,2]
[375273002,1753612239768,-460.0,0.00019178,2]
[375273003,1753612239777,-460.0,0.00019178,2]
[375273004,1753612239786,-2106.4,0.00019178,2]
[375273005,1753612239797,-460.0,0.00019178,2]
[375273006,1753612239807,-1603.91,0.00019178,2]
[375273008,1753612239816,-460.0,0.00019178,2]
[375273009,1753612239826,-460.0,0.00019178,2]
[375273010,1753612239836,-460.0,0.00019178,2]
[375273011,1753612239846,-460.0,0.00019178,2]
[375273012,1753612239856,-460.0,0.00019178,2]
[375273013,1753612239866,-2725.78,0.00019178,2]
[375273014,1753612239876,-690.0,0.00019178,2]
[375273015,1753612239886,-1525.37,0.00019178,2]
[375273016,1753612240000,-460.0,0.00019178,2]
[375273017,1753612240010,-982.37,0.00019178,2]
[375273018,1753612240020,-460.0,0.00019178,2]
[375273019,1753612240029,-460.0,0.00019178,2]
[375273020,1753612240039,-477.91237632,0.00019178,2]
[375273021,1753612240048,-460.0,0.00019178,2]
[375273022,1753612240058,-460.0,0.00019178,2]
[375273023,1753612240067,-460.0,0.00019178,2]
[375273024,1753612240077,-460.0,0.00019178,2]
[375273025,1753612240086,-460.0,0.00019178,2]
[375273026,1753612240095,-460.0,0.00019178,2]
[375273027,1753612240105,-460.0,0.00019178,2]
[375273028,1753612240114,-460.0,0.00019178,2]
[375273029,1753612240123,-460.0,0.00019178,2]
[375273030,1753612240132,-460.0,0.00019178,2]
[375273031,1753612240141,-460.0,0.00019178,2]
[375273032,1753612240150,-460.0,0.00019178,2]
[375273033,1753612240159,-2245.93,0.00019178,2]
[375273034,1753612240169,-460.0,0.00019178,2]
[375273035,1753612240178,-2043.29,0.00019178,2]
[375273036,1753612240188,-460.0,0.00019178,2]
[375273037,1753612240201,-460.0,0.00019178,2]
[375273038,1753612240210,-460.0,0.00019178,2]
[375273039,1753612240220,-460.0,0.00019178,2]
[375273040,1753612240229,-460.0,0.00019178,2]
[375273041,1753612240240,-318.5055241,0.00019178,2]
[375273042,1753612240250,-460.0,0.00019178,2]
[375273043,1753612240260,-460.0,0.00019178,2]
[375273044,1753612240270,-460.0,0.00019178,2]
[375273045,1753612240279,-460.0,0.00019178,2]
[375273046,1753612240289,-460.0,0.00019178,2]
[375273047,1753612240298,-460.0,0.00019178,2]
[375273048,1753612240308,-460.0,0.00019178,2]
[375273049,1753612240317,-460.0,0.00019178,2]
[375273050,1753612240326,-460.0,0.00019178,2]
[375273051,1753612240335,-443.45177003,0.00019178,2]
[375273052,1753612240344,-2233.32,0.00019178,2]
[375273053,1753612240354,-460.0,0.00019178,2]
[375273054,1753612240363,-635.65,0.00019178,2]
[375273055,1753612240372,-460.0,0.00019178,2]
[375273056,1753612240382,-722.74,0.00019178,2]
[375273057,1753612240391,-460.0,0.00019178,2]
[375273058,1753612240401,-627.07,0.00019178,2]
[375273059,1753612240410,-460.0,0.00019178,2]
[375273060,1753612240419,-570.74,0.00019178,2]
[375273061,1753612240429,-469.68816429,0.00019178,2]
[375273062,1753612240438,-460.0,0.00019178,2]
[375273063,1753612240447,-593.55,0.00019178,2]
[375273064,1753612240456,-460.0,0.00019178,2]
[375273065,1753612240466,-463.36,0.00019178,2]
[375273066,1753612240475,-460.0,0.00019178,2]
[375273067,1753612240484,-460.0,0.00019178,2]
[375273068,1753612240493,-465.76183151,0.00019178,2]
[375273069,1753612240502,-460.0,0.00019178,2]
[375273070,1753612240511,-562.3,0.00019178,2]
[375273071,1753612240522,-460.0,0.00019178,2]
[375273072,1753612240532,-179.98915129,0.00019178,2]
[375273073,1753612240541,-460.0,0.00019178,2]
[375273074,1753612240551,-460.0,0.00019178,2]
[375273075,1753612240560,-460.0,0.00019178,2]
[375273076,1753612240570,-460.0,0.00019178,2]
[375273077,1753612240579,-460.0,0.00019178,2]
[375273078,1753612240589,-460.0,0.00019178,2]
[375273079,1753612240598,-460.0,0.00019178,2]
[375273080,1753612240608,-800.65,0.00019178,2]
[375273081,1753612240618,-460.0,0.00019178,2]
[375273082,1753612240627,-482.48,0.00019178,2]
[375273083,1753612240636,-460.0,0.00019178,2]
[375273084,1753612240645,-460.0,0.00019178,2]
[375273085,1753612240654,-549.44621709,0.00019178,2]
[375273086,1753612240663,-513.13,0.00019178,2]
[375273087,1753612240673,-692.74,0.00019178,2]
[375273088,1753612240682,-522.56,0.00019178,2]
[375273089,1753612240691,-912.91,0.00019178,2]
[375273090,1753612240700,-2532.53,0.00019178,2]
[375273091,1753612240709,-460.0,0.00019178,2]
[375273092,1753612240718,-460.0,0.00019178,2]
[375273093,1753612240728,-460.0,0.00019178,2]
[375273094,1753612240737,-460.0,0.00019178,2]
[375273095,1753612240746,-460.0,0.00019178,2]
[375273096,1753612240755,-460.0,0.00019178,2]
[375273097,1753612240765,-460.0,0.00019178,2]
[375273098,1753612240776,-460.0,0.00019178,2]
[375273099,1753612240785,-460.0,0.00019178,2]
[375273100,1753612240795,-460.0,0.00019178,2]
[375273101,1753612240804,-460.0,0.00019178,2]
[375273102,1753612240814,-460.0,0.00019178,2]
[375273103,1753612240823,-388.61371286,0.00019178,2]
[375273104,1753612240833,-10526.90424614,0.00019178,2]
[375273105,1753612240842,-945.32150592,0.00019349,2]
[375273106,1753612240851,-6076.42655577,0.00019352,2]
[375273107,1753612240861,-460.0,0.00019452,2]
[375273108,1753612240871,-460.0,0.00019452,2]
[375273109,1753612240880,-460.0,0.00019452,2]
[375273110,1753612240889,-470.51119168,0.00019452,2]
[375273111,1753612240899,-390.41225918,0.00019452,2]
[375273112,1753612240908,-460.0,0.00019452,2]
[375273113,1753612240917,-470.94341834,0.00019452,2]
[375273114,1753612240926,-460.0,0.00019452,2]
[375273115,1753612240935,-563.3,0.00019452,2]
[375273116,1753612240944,-460.0,0.00019452,2]
[375273117,1753612240953,-460.0,0.00019452,2]
[375273118,1753612240962,-460.0,0.00019452,2]
[375273119,1753612240971,-460.0,0.00019452,2]
[375273120,1753612240981,-466.93479341,0.00019452,2]
[375273121,1753612240990,-460.0,0.00019452,2]
[375273122,1753612240999,-460.0,0.00019452,2]
[375273123,1753612241008,-460.0,0.00019452,2]
[375273124,1753612241018,-460.0,0.00019452,2]
[375273125,1753612241027,-460.0,0.00019452,2]
[375273126,1753612241036,-460.0,0.00019452,2]
[375273127,1753612241046,-460.0,0.00019452,2]
[375273128,1753612241054,-460.0,0.00019452,2]
[375273129,1753612241064,-296.35361439,0.00019452,2]
[375273130,1753612241074,-460.0,0.00019452,2]
[375273131,1753612241083,-460.0,0.00019452,2]
[375273132,1753612241092,-460.0,0.00019452,2]
[375273133,1753612241101,-460.0,0.00019452,2]
[375273134,1753612241110,-460.0,0.00019452,2]
[375273135,1753612241119,-460.0,0.00019452,2]
[375273136,1753612241128,-460.0,0.00019452,2]
[375273137,1753612241137,-838.11,0.00019452,2]
[375273138,1753612241147,-460.0,0.00019452,2]
[375273139,1753612241156,-590.56,0.00019452,2]
[375273140,1753612241165,-207.97523436,0.00019452,2]
[375273141,1753612241174,-460.0,0.00019452,2]
[375273142,1753612241184,-460.0,0.00019452,2]
[375273143,1753612241193,-1103.32,0.00019452,2]
[375273144,1753612241202,-716.54,0.00019452,2]
[375273145,1753612241211,-460.0,0.00019452,2]
[375273146,1753612241221,-460.0,0.00019452,2]
[375273147,1753612241232,-460.0,0.00019452,2]
[375273148,1753612241242,-460.0,0.00019452,2]
[375273149,1753612241251,-460.0,0.00019452,2]
[375273150,1753612241260,-460.0,0.00019452,2]
[375273151,1753612241269,-460.0,0.00019452,2]
[375273152,1753612241278,-460.0,0.00019452,2]
[375273153,1753612241287,-460.0,0.00019452,2]
[375273154,1753612241297,-460.0,0.00019452,2]
[375273155,1753612241306,-460.0,0.00019452,2]
[375273156,1753612241315,-460.0,0.00019452,2]
[375273157,1753612241324,-460.0,0.00019452,2]
[375273158,1753612241333,-460.0,0.00019452,2]
[375273159,1753612241342,-460.0,0.00019452,2]
[375273160,1753612241351,-460.0,0.00019452,2]
[375273161,1753612241360,-460.0,0.00019452,2]
[375273162,1753612241370,-460.0,0.00019452,2]
[375273163,1753612241379,-460.0,0.00019452,2]
[375273164,1753612241388,-460.0,0.00019452,2]
[375273165,1753612241397,-460.0,0.00019452,2]
[375273166,1753612241406,-460.0,0.00019452,2]
[375273167,1753612241416,-460.0,0.00019452,2]
[375273168,1753612241425,-460.0,0.00019452,2]
[375273169,1753612241435,-460.0,0.00019452,2]
[375273170,1753612241444,-4686.83,0.00019452,2]
[375273171,1753612241453,-460.0,0.00019452,2]
[375273172,1753612241462,-460.0,0.00019452,2]
[375273173,1753612241472,-460.0,0.00019452,2]
[375273174,1753612241481,-460.0,0.00019452,2]
[375273175,1753612241491,-460.0,0.00019452,2]
[375273176,1753612241500,-460.0,0.00019452,2]
[375273177,1753612241510,-460.0,0.00019452,2]
[375273178,1753612241519,-469.57882627,0.00019452,2]
[375273179,1753612241530,-460.0,0.00019452,2]
[375273180,1753612241540,-460.0,0.00019452,2]
[375273181,1753612241552,-775.26,0.00019452,2]
[375273182,1753612241561,-611.59,0.00019452,2]
[375273183,1753612241570,-460.0,0.00019452,2]
[375273184,1753612241580,-441.79556851,0.00019452,2]
[375273185,1753612241589,-5031.59,0.00019452,2]
[375273186,1753612241598,-336.70411929,0.00019452,2]
[375273187,1753612241608,-460.0,0.00019452,2]
[375273188,1753612241617,-460.0,0.00019452,2]
[375273189,1753612241626,-186.56207954,0.00019452,2]
[375273190,1753612241635,-460.0,0.00019452,2]
[375273191,1753612241645,-460.0,0.00019452,2]
[375273192,1753612241654,-460.0,0.00019452,2]
[375273193,1753612241663,-460.0,0.00019452,2]
[375273194,1753612241673,-460.0,0.00019452,2]
[375273195,1753612241682,-460.0,0.00019452,2]
[375273196,1753612241692,-460.0,0.00019452,2]
[375273197,1753612241701,-460.0,0.00019452,2]
[375273198,1753612241710,-463.38656064,0.00019452,2]
[375273199,1753612241720,-460.0,0.00019452,2]
[375273200,1753612241729,-460.0,0.00019452,2]
[375273201,1753612241738,-460.0,0.00019452,2]
[375273202,1753612241748,-460.0,0.00019452,2]
[375273203,1753612241758,-460.0,0.00019452,2]
[375273204,1753612241767,-460.0,0.00019452,2]
[375273205,1753612241778,-460.0,0.00019452,2]
[375273206,1753612241787,-535.45,0.00019452,2]
[375273207,1753612241797,-315.59201683,0.00019452,2]
[375273208,1753612241809,-1827.36,0.00019452,2]
[375273209,1753612241818,-3527.67,0.00019452,2]
[375273210,1753612241830,-1887.82,0.00019452,2]
[375273211,1753612241839,-460.0,0.00019452,2]
[375273212,1753612241849,-614.29,0.00019452,2]
[375273213,1753612241860,-460.0,0.00019452,2]
[375273214,1753612241869,-460.0,0.00019452,2]
[375273215,1753612241880,-2214.31,0.00019452,2]
[375273216,1753612241891,-460.0,0.00019452,2]
[375273217,1753612241900,-460.0,0.00019452,2]
[375273218,1753612241909,-463.30594673,0.00019452,2]
[375273219,1753612241919,-599.1,0.00019452,2]
[375273220,1753612241928,-466.36041667,0.00019452,2]
[375273221,1753612241938,-460.0,0.00019452,2]
[375273222,1753612241947,-779.87,0.00019452,2]
[375273223,1753612241956,-1073.35,0.00019452,2]
[375273224,1753612241965,-520.92,0.00019452,2]
[375273225,1753612241974,-460.0,0.00019452,2]
[375273226,1753612241984,-460.0,0.00019452,2]
[375273227,1753612241993,-460.0,0.00019452,2]
[375273228,1753612242002,-460.0,0.00019452,2]
[375273229,1753612242011,-460.0,0.00019452,2]
[375273230,1753612242021,-2106.4,0.00019452,2]
[375273231,1753612242031,-460.0,0.00019452,2]
[375273232,1753612242040,-1603.91,0.00019452,2]
[375273233,1753612242050,-460.0,0.00019452,2]
[375273234,1753612242060,-460.0,0.00019452,2]
[375273235,1753612242069,-460.0,0.00019452,2]
[375273236,1753612242078,-460.0,0.00019452,2]
[375273237,1753612242088,-460.0,0.00019452,2]
[375273238,1753612242097,-2725.78,0.00019452,2]
[375273239,1753612242106,-690.0,0.00019452,2]
[375273240,1753612242116,-1525.37,0.00019452,2]
[375273241,1753612242125,-460.0,0.00019452,2]
[375273242,1753612242134,-982.37,0.00019452,2]
[375273243,1753612242143,-460.0,0.00019452,2]
[375273244,1753612242152,-460.0,0.00019452,2]
[375273245,1753612242161,-460.0,0.00019452,2]
[375273246,1753612242171,-460.0,0.00019452,2]
[375273247,1753612242180,-460.0,0.00019452,2]
[375273250,1753612242189,-460.0,0.00019452,2]
[375273251,1753612242200,-432.96735318,0.00019452,2]
[375273252,1753612242213,-460.0,0.00019452,2]
[375273253,1753612242222,-460.0,0.00019452,2]
[375273254,1753612242232,-460.0,0.00019452,2]
[375273256,1753612242241,-460.0,0.00019452,2]
[375273257,1753612242251,-2245.93,0.00019452,2]
[375273258,1753612242260,-460.0,0.00019452,2]
[375273259,1753612242269,-2043.29,0.00019452,2]
[375273260,1753612242278,-460.0,0.00019452,2]
[375273261,1753612242290,-460.0,0.00019452,2]
[375273262,1753612242299,-460.0,0.00019452,2]
[375273263,1753612242309,-460.0,0.00019452,2]
[375273264,1753612242318,-460.0,0.00019452,2]
[375273265,1753612242327,-460.0,0.00019452,2]
[375273266,1753612242336,-460.0,0.00019452,2]
[375273267,1753612242345,-460.0,0.00019452,2]
[375273268,1753612242354,-460.0,0.00019452,2]
[375273269,1753612242364,-460.0,0.00019452,2]
[375273270,1753612242373,-460.0,0.00019452,2]
[375273271,1753612242382,-460.0,0.00019452,2]
[375273272,1753612242391,-2233.32,0.00019452,2]
[375273273,1753612242401,-460.0,0.00019452,2]
[375273275,1753612242410,-635.65,0.00019452,2]
[375273277,1753612242419,-460.0,0.00019452,2]
[375273278,1753612242428,-722.74,0.00019452,2]
[375273280,1753612242437,-460.0,0.00019452,2]
[375273281,1753612242447,-627.07,0.00019452,2]
[375273282,1753612242456,-460.0,0.00019452,2]
[375273283,1753612242465,-570.74,0.00019452,2]
[375273284,1753612242476,-460.0,0.00019452,2]
[375273285,1753612242485,-593.55,0.00019452,2]
[375273286,1753612242494,-460.0,0.00019452,2]
[375273287,1753612242503,-463.36,0.00019452,2]
[375273289,1753612242513,-462.31238432,0.00019452,2]
[375273291,1753612242523,-460.0,0.00019452,2]
[375273292,1753612242533,-562.3,0.00019452,2]
[375273293,1753612242543,-460.0,0.00019452,2]
[375273294,1753612242552,-460.0,0.00019452,2]
[375273295,1753612242562,-460.0,0.00019452,2]
[375273297,1753612242572,-460.0,0.00019452,2]
[375273299,1753612242581,-460.0,0.00019452,2]
[375273301,1753612242591,-460.0,0.00019452,2]
[375273314,1753612242708,-800.65,0.00019452,2]
[375273316,1753612242717,-460.0,0.00019452,2]
[375273318,1753612242727,-482.48,0.00019452,2]
[375273320,1753612242736,-460.0,0.00019452,2]
[375273322,1753612242746,-513.13,0.00019452,2]
[375273324,1753612242755,-692.74,0.00019452,2]
[375273326,1753612242764,-522.56,0.00019452,2]
[375273328,1753612242774,-912.91,0.00019452,2]
[375273330,1753612242783,-2532.53,0.00019452,2]
[375273332,1753612242793,-460.0,0.00019452,2]
[375273334,1753612242803,-460.0,0.00019452,2]
[375273336,1753612242813,-460.0,0.00019452,2]
[375273338,1753612242823,-460.0,0.00019452,2]
[375273340,1753612242832,-460.0,0.00019452,2]
[375273342,1753612242842,-460.0,0.00019452,2]
[375273344,1753612242851,-600.0,0.0001952,2]
[375273347,1753612242861,-4736.10528933,0.00019609,2]
[375273349,1753612242870,-1884.49125886,0.00019626,2]
[375273350,1753612242880,-462.89009495,0.00019726,2]
[375273353,1753612242889,-460.0,0.00019726,2]
[375273355,1753612242899,-599.3236625,0.00019726,2]
[375273357,1753612242908,-563.3,0.00019726,2]
[375273358,1753612242918,-460.0,0.00019726,2]
[375273361,1753612242927,-460.0,0.00019726,2]
[375273363,1753612242937,-460.0,0.00019726,2]
[375273365,1753612242947,-460.0,0.00019726,2]
[375273367,1753612242956,-460.0,0.00019726,2]
[375273369,1753612242966,-460.0,0.00019726,2]
[375273371,1753612242975,-535.19816645,0.00019726,2]
[375273373,1753612242985,-460.0,0.00019726,2]
[375273375,1753612242994,-460.0,0.00019726,2]
[375273377,1753612243004,-345.45235253,0.00019726,2]
[375273379,1753612243013,-460.0,0.00019726,2]
[375273381,1753612243023,-460.0,0.00019726,2]
[375273383,1753612243033,-460.0,0.00019726,2]
[375273385,1753612243045,-460.0,0.00019726,2]
[375273387,1753612243055,-460.0,0.00019726,2]
[375273389,1753612243065,-460.0,0.00019726,2]
[375273391,1753612243075,-838.11,0.00019726,2]
[375273393,1753612243085,-590.56,0.00019726,2]
[375273394,1753612243094,-460.0,0.00019726,2]
[375273397,1753612243104,-1103.32,0.00019726,2]
[375273399,1753612243114,-716.54,0.00019726,2]
[375273400,1753612243123,-460.0,0.00019726,2]
[375273402,1753612243133,-325.23098824,0.00019726,2]
[375273405,1753612243142,-460.0,0.00019726,2]
[375273408,1753612243152,-460.0,0.00019726,2]
[375273410,1753612243161,-460.0,0.00019726,2]
[375273411,1753612243170,-460.0,0.00019726,2]
[375273413,1753612243179,-460.0,0.00019726,2]
[375273415,1753612243189,-460.0,0.00019726,2]
[375273417,1753612243198,-460.0,0.00019726,2]
[375273419,1753612243207,-460.0,0.00019726,2]
[375273422,1753612243222,-460.0,0.00019726,2]
[375273424,1753612243232,-460.0,0.00019726,2]
[375273426,1753612243240,-460.0,0.00019726,2]
[375273428,1753612243250,-4686.83,0.00019726,2]
[375273430,1753612243261,-460.0,0.00019726,2]
[375273431,1753612243270,-460.0,0.00019726,2]
[375273433,1753612243279,-460.0,0.00019726,2]
[375273435,1753612243289,-460.0,0.00019726,2]
[375273438,1753612243300,-460.0,0.00019726,2]
[375273439,1753612243311,-460.0,0.00019726,2]
[375273442,1753612243322,-460.0,0.00019726,2]
[375273443,1753612243331,-775.26,0.00019726,2]
[375273444,1753612243340,-611.59,0.00019726,2]
[375273445,1753612243349,-5031.59,0.00019726,2]
[375273446,1753612243360,-460.0,0.00019726,2]
[375273447,1753612243369,-460.0,0.00019726,2]
[375273448,1753612243378,-460.0,0.00019726,2]
[375273449,1753612243388,-460.0,0.00019726,2]
[375273450,1753612243397,-460.0,0.00019726,2]
[375273451,1753612243406,-460.0,0.00019726,2]
[375273452,1753612243416,-458.77524967,0.00019726,2]
[375273453,1753612243425,-524.54097637,0.00019726,2]
[375273454,1753612243434,-460.0,0.00019726,2]
[375273455,1753612243443,-460.0,0.00019726,2]
[375273456,1753612243453,-460.0,0.00019726,2]
[375273457,1753612243462,-535.45,0.00019726,2]
[375273458,1753612243472,-1827.36,0.00019726,2]
[375273459,1753612243481,-3527.67,0.00019726,2]
[375273460,1753612243490,-1887.82,0.00019726,2]
[375273461,1753612243500,-460.0,0.00019726,2]
[375273462,1753612243510,-614.29,0.00019726,2]
[375273463,1753612243519,-460.0,0.00019726,2]
[375273464,1753612243528,-460.0,0.00019726,2]
[375273465,1753612243538,-2214.31,0.00019726,2]
[375273466,1753612243547,-468.06104447,0.00019726,2]
[375273467,1753612243556,-599.1,0.00019726,2]
[375273468,1753612243566,-779.87,0.00019726,2]
[375273469,1753612243575,-460.0,0.00019726,2]
[375273470,1753612243584,-1073.35,0.00019726,2]
[375273471,1753612243594,-520.92,0.00019726,2]
[375273472,1753612243603,-274.77,0.00019726,2]
[375273473,1753612243612,-460.0,0.00019726,2]
[375273474,1753612243621,-460.0,0.00019726,2]
[375273475,1753612243630,-460.0,0.00019726,2]
[375273476,1753612243639,-2106.4,0.00019726,2]
[375273477,1753612243648,-460.0,0.00019726,2]
[375273478,1753612243658,-282.75815685,0.00019726,2]
[375273479,1753612243667,-1603.91,0.00019726,2]
[375273480,1753612243676,-273.75030837,0.00019726,2]
[375273481,1753612243686,-460.0,0.00019726,2]
[375273482,1753612243695,-460.0,0.00019726,2]
[375273483,1753612243704,-2725.78,0.00019726,2]
[375273484,1753612243715,-690.0,0.00019726,2]
[375273485,1753612243724,-1525.37,0.00019726,2]
[375273486,1753612243733,-460.0,0.00019726,2]
[375273487,1753612243742,-982.37,0.00019726,2]
[375273488,1753612243752,-460.0,0.00019726,2]
[375273489,1753612243761,-460.0,0.00019726,2]
[375273490,1753612243772,-460.0,0.00019726,2]
[375273491,1753612243781,-585.19,0.00019726,2]
[375273492,1753612243790,-460.0,0.00019726,2]
[375273493,1753612243799,-460.0,0.00019726,2]
[375273494,1753612243809,-460.0,0.00019726,2]
[375273495,1753612243818,-460.0,0.00019726,2]
[375273496,1753612243828,-2245.93,0.00019726,2]
[375273497,1753612243837,-2043.29,0.00019726,2]
[375273498,1753612243846,-460.0,0.00019726,2]
[375273499,1753612243856,-460.0,0.00019726,2]
[375273500,1753612243864,-460.0,0.00019726,2]
[375273501,1753612243874,-460.0,0.00019726,2]
[375273502,1753612243883,-460.0,0.00019726,2]
[375273503,1753612243892,-460.0,0.00019726,2]
[375273504,1753612243901,-460.0,0.00019726,2]
[375273505,1753612243910,-452.93764178,0.00019726,2]
[375273506,1753612243919,-460.0,0.00019726,2]
[375273507,1753612243928,-2233.32,0.00019726,2]
[375273508,1753612243937,-460.0,0.00019726,2]
[375273509,1753612243946,-635.65,0.00019726,2]
[375273510,1753612243956,-460.0,0.00019726,2]
[375273511,1753612243965,-722.74,0.00019726,2]
[375273512,1753612243974,-460.0,0.00019726,2]
[375273513,1753612243984,-627.07,0.00019726,2]
[375273514,1753612243994,-460.0,0.00019726,2]
[375273515,1753612244003,-570.74,0.00019726,2]
[375273516,1753612244013,-460.0,0.00019726,2]
[375273517,1753612244022,-463.36,0.00019726,2]
[375273518,1753612244032,-562.3,0.00019726,2]
[375273519,1753612244041,-460.0,0.00019726,2]
[375273520,1753612244051,-460.0,0.00019726,2]
[375273521,1753612244060,-460.0,0.00019726,2]
[375273522,1753612244070,-460.0,0.00019726,2]
[375273523,1753612244079,-460.0,0.00019726,2]
[375273524,1753612244088,-460.0,0.00019726,2]
[375273525,1753612244098,-800.65,0.00019726,2]
[375273526,1753612244107,-460.0,0.00019726,2]
[375273527,1753612244116,-482.48,0.00019726,2]
[375273528,1753612244125,-555.8,0.00019726,2]
[375273529,1753612244136,-513.13,0.00019726,2]
[375273530,1753612244146,-692.74,0.00019726,2]
[375273531,1753612244155,-912.91,0.00019726,2]
[375273532,1753612244164,-522.56,0.00019726,2]
[375273533,1753612244173,-2532.53,0.00019726,2]
[375273534,1753612244183,-460.0,0.00019726,2]
[375273535,1753612244192,-460.0,0.00019726,2]
[375273536,1753612244202,-460.0,0.00019726,2]
[375273537,1753612244218,-460.0,0.00019726,2]
[375273538,1753612244227,-460.0,0.00019726,2]
[375273539,1753612244237,-460.0,0.00019726,2]
[375273540,1753612244246,-840.75038169,0.00019751,2]
[375273541,1753612244257,-12632.25855046,0.00019751,2]
[375273542,1753612244267,-231.30466539,0.00019751,2]
[375273543,1753612244276,-160.0,0.00019751,2]
[375273544,1753612244286,-160.0,0.00019751,2]
[375273545,1753612244295,-214.84090509,0.00019751,2]
[375273546,1753612244304,-160.0,0.00019751,2]
[375273547,1753612244314,-160.0,0.00019751,2]
[375273548,1753612244323,-216.01841554,0.00019751,2]
[375273550,1753612244333,-526.50274803,0.00019751,2]
[375273551,1753612244342,-477.07289566,0.00019751,2]
[375273552,1753612244351,-160.0,0.00019752,2]